{"text_format":"1","workbook":"xlsx","n_sheets":1,"sheets":["Indice Electrónico"],"not_rendered":{"charts":0,"images":1,"macros":1,"external_links":0,"defined_names":7,"comments":1,"pivot_tables":0},"unopened":[],"bounds":{"document_bytes":16777216,"sheet_cells":100000,"rows_first":2000,"rows_last":500,"rows_between":2000,"halvings":0,"cell_chars":16384,"cell_head_chars":4096},"cells_cut":0,"cells_raw":0,"read":"whole","date_system":"1900"}

{"sheet":"Indice Electrónico","index":0,"n_rows":56,"n_cols":11,"rows_kept":56,"cut":false,"hidden":false,"merged":[[4,1,4,5],[51,1,51,10],[54,2,54,5],[55,2,55,5],[54,7,54,9],[55,7,55,9],[7,1,7,5],[5,1,5,5],[6,1,6,5],[4,7,5,8],[4,9,5,10],[6,7,6,8],[6,9,6,10],[2,9,3,10],[1,1,1,5],[2,1,2,5],[3,1,3,5],[0,0,0,10],[1,7,1,10],[2,7,3,8]]}
["ÍNDICE DEL EXPEDIENTE  ELECTRÓNICO DE ARCHIVO"]
["Oficina Productora","DIRECCIÓN DE SALUD PUBLICA",null,null,null,null,null,"EXPEDIENTE FÍSICO"]
["Código",null,null,null,null,null,null,"El expediente posee documentos físicos:",null,"SI____     NO __X__"]
["Serie / Subserie Documental","ACTAS / ACTAS DE COMITÉ XXX"]
["Asunto",null,null,null,null,null,null,"No. de carpetas"]
["No. Indentificación o Nit","NA"]
["Consecutivo, Radicado o Número","N/A"]
["Carpeta No."]
[]
["Nombre Documento","Fecha Creación Documento","Fecha Incorporación Expediete","Orden Documento ","Número Páginas","Página Inicio","Página \nFin","Formato","Tamaño","Origen","Observaciones"]
["INVITACION A REUNION","2022-02-02","2022-02-03",1,1,{"$f":"+IF(E11=0,\"0\",\"1\")","v":"1"},1,"PDF","2 MEGA","NATIVO ELECTRONICO O DIGITALIZADO"]
["ACTA REUNION","2022-02-03","2022-02-03",2,5,{"$f":"+IF(E12=0,\"0\",(1+G11))","v":2},{"$f":"+F12+(E12-1)","v":6}]
["SOLICITUDES DE INFORMACION",null,null,3,5,{"$f":"+IF(E13=0,\"0\",(1+G12))","v":7},{"$f":"+F13+(E13-1)","v":11}]
[null,null,null,4,null,{"$f":"+IF(E14=0,\"0\",(1+G13))","v":"0"},{"$f":"+F14+(E14-1)","v":-1}]
[null,null,null,null,null,"0",-1]
[null,null,null,null,null,"0",-1]
[null,null,null,null,null,"0",-1]
[null,null,null,null,null,"0",-1]
[null,null,null,null,null,"0",-1]
[null,null,null,null,null,"0",{"$f":"+F20+(E20-1)","v":-1}]
[null,null,null,null,null,"0",-1]
[null,null,null,null,null,"0",-1]
[null,null,null,null,null,"0",-1]
[null,null,null,null,null,"0",-1]
[null,null,null,null,null,"0",-1]
[null,null,null,null,null,"0",-1]
[null,null,null,null,null,"0",-1]
[null,null,null,null,null,"0",-1]
[null,null,null,null,null,"0",-1]
[null,null,null,null,null,"0",-1]
[null,null,null,null,null,"0",-1]
[null,null,null,null,null,{"$f":"+IF(E32=0,\"0\",(1+G19))","v":"0"},-1]
[null,null,null,null,null,"0",-1]
[null,null,null,null,null,"0",-1]
[null,null,null,null,null,"0",-1]
[null,null,null,null,null,"0",-1]
[null,null,null,null,null,{"$f":"+IF(E37=0,\"0\",(1+G13))","v":"0"},-1]
[null,null,null,null,null,{"$f":"+IF(E38=0,\"0\",(1+G37))","v":"0"},-1]
[null,null,null,null,null,{"$f":"+IF(E39=0,\"0\",(1+G38))","v":"0"},{"$f":"+F39+(E39-1)","v":-1}]
[null,null,null,null,null,"0",-1]
[null,null,null,null,null,"0",-1]
[null,null,null,null,null,"0",-1]
[null,null,null,null,null,"0",-1]
[null,null,null,null,null,"0",-1]
[null,null,null,null,null,"0",-1]
[null,null,null,null,null,"0",-1]
[null,null,null,null,null,"0",-1]
[null,null,null,null,null,{"$f":"+IF(E48=0,\"0\",(1+G38))","v":"0"},-1]
[null,null,null,null,null,"0",-1]
[null,null,null,null,null,"0",-1]
[null,null,null,null,null,"0",-1]
["FECHA DE CIERRE DEL EXPEDIENTE: ","2022-12-31"]
[]
[]
["______________________________",null,"___________________________________________",null,null,null,null,"______________________________________"]
["NOMBRE DEL RESPONSABLE",null,"CARGO",null,null,null,null,"FIRMA"]